bitfinex-derivatives/quotes_SOLF0:USTF0_20260126
["timestamp","ask_amount","ask_price","bid_price","bid_amount"]
[1769406780675,3.82532584,122.56,122.5,3.35458335]
[1769406781577,2.71827054,122.56,122.5,3.35458335]
[1769406781872,2.71827054,122.56,122.51,3.35458335]
[1769406782078,1.10673608,122.58,122.51,3.35458335]
[1769406782079,3.82500662,122.58,122.51,3.35458335]
[1769406784879,3.82500662,122.58,122.52,3.58883062]
[1769406785881,2.71827054,122.57,122.52,3.58883062]
[1769406787780,1.10673608,122.58,122.52,3.58883062]
[1769406788082,3.82500662,122.58,122.52,3.58883062]
[1769406790674,1.10673608,122.58,122.52,3.58883062]
[1769406792678,3.82500662,122.58,122.53,3.58883062]
[1769406795085,1.10673608,122.58,122.53,3.58883062]
[1769406800387,1.10673608,122.58,122.54,3.27958316]
[1769406802382,114.2995,122.66,122.54,3.27958316]
[1769406802586,175.0,122.72,122.54,3.27958316]
[1769406802587,1.10980076,122.65,122.59,3.27958316]
[1769406802887,1.10980076,122.65,122.6,3.27958316]
[1769406805278,2.71449655,122.67,122.6,3.27958316]
[1769406805478,3.82406074,122.68,122.61,3.27958316]
[1769406805678,1.10956419,122.68,122.62,3.27958316]
[1769406806279,1.10956419,122.68,122.63,3.27958316]
[1769406811686,3.82406074,122.68,122.63,3.27958316]
[1769406814185,1.10463842,122.67,122.61,3.42585968]
[1769406814489,2.71449655,122.64,122.59,10.77685968]
[1769406814991,1.10463842,122.65,122.59,10.77685968]
[1769406815491,1.10463842,122.65,122.6,3.42585968]
[1769406815695,114.2575,122.7,122.6,3.42585968]
[1769406815696,1.10456981,122.66,122.6,3.42585968]
[1769406815887,3.81906636,122.66,122.6,3.42585968]
[1769406816082,1.10456981,122.66,122.6,3.42585968]
[1769406817797,3.81906636,122.66,122.6,3.42585968]
[1769406819095,1.10430319,122.65,122.59,3.42585968]
[1769406820692,3.81879974,122.65,122.59,3.42585968]
[1769406820898,3.81879974,122.65,122.55,3.42585968]
[1769406820899,1.10423843,122.6,122.55,3.42585968]
[1769406821090,2.71449655,122.59,122.53,3.42585968]
[1769406821287,2.71449655,122.61,122.54,3.42585968]
[1769406824197,2.71449655,122.63,122.55,6.14035623]
[1769406824500,2.71449655,122.63,122.56,3.42585968]
[1769406827001,1.10398677,122.64,122.58,3.42585968]
[1769406827294,2.71449655,122.65,122.58,3.42585968]
[1769406828203,3.81824302,122.65,122.58,3.42585968]
[1769406829203,3.81818466,122.67,122.6,3.42585968]
[1769406829398,1.10368811,122.66,122.6,3.42585968]
[1769406830700,2.71449655,122.65,122.6,3.42585968]
[1769406831599,3.81806994,122.64,122.58,3.42585968]
[1769406831804,3.81806994,122.62,122.56,3.42585968]
[1769406832006,2.71449655,122.6,122.56,3.42585968]
[1769406832311,2.71449655,122.6,122.54,3.42585968]
[1769406832700,2.71449655,122.6,122.56,3.42585968]
[1769406834208,2.71449655,122.61,122.56,3.42585968]
[1769406835703,2.71449655,122.6,122.56,3.42585968]
[1769406836711,2.71449655,122.61,122.56,3.42585968]
[1769406842119,2.71449655,122.6,122.56,3.42585968]
[1769406842420,2.71449655,122.59,122.56,3.42585968]
[1769406844223,2.71449655,122.59,122.54,3.44798949]
[1769406844812,2.71449655,122.58,122.54,3.44798949]
[1769406845212,2.71449655,122.59,122.54,3.44798949]
[1769406846214,2.71449655,122.58,122.54,3.44798949]
[1769406846420,2.71449655,122.58,122.52,3.44798949]
[1769406846722,2.71449655,122.57,122.52,3.44798949]
[1769406848120,2.71449655,122.56,122.52,3.44798949]
[1769406850731,1.10717511,122.58,122.52,3.44798949]
[1769406851030,2.71449655,122.57,122.52,3.44798949]
[1769406857434,2.71449655,122.58,122.52,3.44798949]
[1769406857634,2.71470525,122.58,122.52,3.44798949]
[1769406860330,2.71470525,122.57,122.52,3.44798949]
[1769406862235,2.71470525,122.58,122.52,3.44798949]
[1769406867745,11.16828083,122.59,122.52,3.44798949]
[1769406868045,1.10158812,122.58,122.52,3.44798949]
[1769406868944,1.10155178,122.56,122.5,640.89117475]
[1769406869140,1.10155178,122.56,122.51,3.57252942]
[1769406876344,8.45363053,122.6,122.53,3.52946749]
[1769406876545,11.16833578,122.6,122.54,3.52946749]
[1769406883356,1.10221153,122.59,122.52,13.59957274]
[1769406883557,1.10221153,122.58,122.52,6.24417274]
[1769406884356,1.10221153,122.58,122.53,3.52946749]
[1769406887954,1.10221153,122.58,122.51,10.07070525]
[1769406888159,1.10206559,122.57,122.51,10.88546749]
[1769406889147,2.71470525,122.58,122.52,6.24417274]
[1769406889352,2.71470525,122.58,122.53,3.52946749]
[1769406891355,3.81668724,122.58,122.53,3.52946749]
[1769406894661,1.10190124,122.57,122.51,10.88546749]
[1769406894860,3.81660649,122.56,122.51,3.52946749]
[1769406902871,1.10190124,122.56,122.51,3.52946749]
[1769406903068,1.10167511,122.55,122.49,3.52946749]
[1769406909376,3.81638036,122.55,122.49,3.52946749]
[1769406911479,7.3536,122.56,122.5,3.32499461]
[1769406911677,8.45578178,122.56,122.5,3.32499461]
[1769406913480,11.17048703,122.56,122.5,3.32499461]
[1769406914277,3.81682367,122.53,122.47,3.32499461]
[1769406916680,182.57507738,122.57,122.49,3.32499461]
[1769406916876,4.18828438,122.56,122.49,3.32499461]
[1769406917779,1.47357913,122.56,122.5,3.73053369]
[1769406917978,1.47357913,122.56,122.51,3.73053369]
[1769406919081,4.18822219,122.58,122.51,3.73053369]
[1769406919282,4.18822219,122.58,122.52,3.73053369]
[1769406919689,4.18835747,122.58,122.52,3.73053369]
[1769406921779,2.71484053,122.59,122.53,3.73053369]
[1769406921983,1.47347667,122.59,122.53,3.73053369]
[1769406922783,4.1883172,122.59,122.53,3.73053369]
[1769406924688,1.47347667,122.59,122.54,3.73053369]
[1769406927988,4.18820182,122.58,122.52,3.73053369]
[1769406928895,2.71484053,122.57,122.52,3.73053369]
[1769406930193,4.18814705,122.57,122.51,7.3558]
[1769406930392,4.18814705,122.56,122.51,7.3558]
[1769406931399,2.71484053,122.55,122.51,3.73053369]
[1769406931792,1.47330652,122.56,122.51,3.73053369]
[1769406934300,2.71484053,122.57,122.51,3.73053369]
[1769406934597,3.81660604,122.58,122.51,3.73053369]
[1769406935595,3.81660604,122.58,122.52,3.65318782]
[1769406939399,2.71484053,122.57,122.52,3.65318782]
[1769406939593,3.81652783,122.57,122.52,3.65318782]
[1769406944101,1.1016873,122.57,122.52,3.65318782]
[1769406947207,3.81652783,122.57,122.52,3.65318782]
[1769406974522,1.1016873,122.57,122.52,3.65318782]
[1769406981436,3.81652783,122.57,122.52,3.65318782]
[1769406981633,2.71533757,122.57,122.52,3.65318782]
[1769406983845,3.81273547,122.57,122.52,3.65318782]
[1769406984237,1.09738903,122.56,122.5,10.60438399]
[1769406984442,1.09738903,122.56,122.5,3.24768399]
[1769406985046,2.71533757,122.57,122.5,3.24768399]
[1769406988745,3.8126921,122.57,122.5,3.24768399]
[1769406989837,2.71533757,122.57,122.51,3.24768399]
[1769406992551,2.71533757,122.57,122.51,10.60378399]
[1769406992848,2.71533757,122.57,122.52,3.24768399]
[1769406993649,2.71533757,122.57,122.53,3.41348185]
[1769406993850,1.09734616,122.58,122.53,3.41348185]
[1769407000861,2.71533757,122.57,122.53,3.41348185]
[1769407001247,1.09958366,122.56,122.51,3.41348185]
[1769407008369,3.81487302,122.55,122.48,3.41348185]
[1769407011664,3.81485352,122.53,122.48,3.41348185]
[1769407012562,2.71533757,122.51,122.45,3.41348185]
[1769407018477,3.81481056,122.51,122.45,3.41348185]
[1769407019174,2.71533757,122.5,122.45,3.41348185]
[1769407021681,3.81479319,122.5,122.45,3.41348185]
[1769407022079,1.09944996,122.49,122.43,3.41348185]
[1769407022779,2.71533757,122.48,122.43,3.41348185]
[1769407025180,3.8172794,122.51,122.44,3.45991289]
[1769407025576,3.8172794,122.51,122.45,3.45991289]
[1769407027879,1.10194183,122.51,122.45,3.45991289]
[1769407028079,11.17316337,122.52,122.45,3.45991289]
[1769407028378,2.71533757,122.53,122.47,3.45991289]
[1769407029083,3.81725815,122.53,122.47,3.45991289]
[1769407029885,1.10191542,122.51,122.45,3.45991289]
[1769407030177,3.81725299,122.51,122.45,3.45991289]
[1769407031987,1.10190528,122.5,122.45,3.45991289]
[1769407032584,2.71533757,122.51,122.45,3.45991289]
[1769407032978,3.81723786,122.52,122.46,3.45991289]
[1769407033182,2.71533757,122.51,122.46,3.45991289]
[1769407034879,3.81722807,122.51,122.46,3.45991289]
[1769407035786,11.17362807,122.51,122.46,3.45991289]
[1769407035979,2.71533757,122.5,122.44,3.45991289]
[1769407036886,3.81721849,122.5,122.44,3.45991289]
[1769407038284,1.10159433,122.49,122.44,3.45991289]
[1769407041489,2.71533757,122.49,122.44,3.45991289]
[1769407041797,2.71845944,122.5,122.44,3.45991289]
[1769407042297,3.82003591,122.5,122.44,3.45991289]
[1769407042996,2.71845944,122.49,122.44,3.45991289]
[1769407043493,3.82003157,122.49,122.44,3.45991289]
[1769407045497,1.1015636,122.48,122.42,3.42625317]
[1769407047792,3.82002304,122.48,122.42,3.42625317]
[1769407054304,1.10434508,122.47,122.42,3.42625317]
[1769407054803,2.71845944,122.48,122.42,3.42625317]
[1769407057096,2.71845944,122.48,122.43,3.38692929]
[1769407060106,10.07535944,122.5,122.43,3.38692929]
[1769407060303,3.82278274,122.51,122.44,3.38692929]
[1769407061703,3.82278274,122.51,122.45,3.38692929]
[1769407061909,2.71845944,122.51,122.45,3.38692929]
[1769407062110,179.99445944,122.52,122.45,3.38692929]
[1769407062311,181.09877581,122.52,122.45,3.38692929]
[1769407063906,1.10431297,122.51,122.45,3.38692929]
[1769407064112,3.82277241,122.51,122.45,3.38692929]
[1769407065713,2.71845944,122.5,122.45,3.38692929]
[1769407073618,3.82277241,122.51,122.45,3.38692929]
[1769407078022,1.10431297,122.51,122.46,3.38692929]
[1769407079125,172.63845944,122.52,122.46,3.38692929]
[1769407079519,173.74272294,122.52,122.46,3.38692929]
[1769407080126,3.82272294,122.52,122.46,3.38692929]
[1769407081925,1.10425793,122.51,122.46,3.38692929]
[1769407084624,3.82271737,122.51,122.46,3.38692929]
[1769407096740,3.82058708,122.47,122.41,3.23069937]
[1769407096936,2.71845944,122.45,122.41,3.23069937]
[1769407099845,2.71845944,122.46,122.41,3.23069937]
[1769407101538,2.72005474,122.46,122.41,3.23069937]
[1769407103649,2.72005474,122.45,122.41,3.23069937]
[1769407106347,1.10354693,122.44,122.39,3.25268276]
[1769407106651,2.72005474,122.43,122.39,3.25268276]
[1769407108353,3.82360167,122.44,122.39,3.25268276]
[1769407111955,1.10354693,122.44,122.39,3.25268276]
[1769407117560,3.82360167,122.44,122.39,3.25268276]
[1769407119563,1.10354693,122.44,122.39,3.25268276]
[1769407135373,3.82360167,122.44,122.39,3.25268276]
[1769407136765,2.72005474,122.42,122.37,3.55572367]
[1769407141278,1.10580138,122.45,122.38,3.55572367]
[1769407141477,3.82585612,122.45,122.38,3.55572367]
[1769407144280,2.72005474,122.45,122.38,3.55572367]
[1769407144684,3.82809044,122.45,122.38,3.55572367]
[1769407146179,2.72005474,122.45,122.39,3.56562346]
[1769407146775,220.9890979,122.46,122.39,6.2856782]
[1769407147083,220.9890979,122.46,122.4,3.56562346]
[1769407148881,220.9890979,122.46,122.4,10.92812346]
[1769407149080,220.9890979,122.46,122.41,3.56562346]
[1769407151486,3.82808796,122.47,122.41,3.56562346]
[1769407157691,2.72005474,122.46,122.41,3.56562346]
[1769407158188,3.82808796,122.47,122.41,3.56562346]
[1769407158493,2.72005474,122.47,122.42,3.35705242]
[1769407158789,3.82501903,122.49,122.42,3.35705242]
[1769407159890,3.82501798,122.48,122.43,3.35705242]
[1769407160892,3.82501695,122.5,122.44,3.35705242]
[1769407163596,3.82331037,122.5,122.44,3.35705242]
[1769407169699,1.1049534,122.48,122.44,3.35705242]
[1769407171608,3.82330156,122.48,122.44,3.35705242]
[1769407175609,1.1049534,122.48,122.44,3.35705242]
[1769407181116,1.1049534,122.48,122.42,3.5878259]
[1769407181322,1.1049534,122.48,122.4,326.02]
[1769407181323,1.10140463,122.46,122.41,3.5878259]
[1769407184613,1.10140228,122.49,122.42,3.5878259]
[1769407184924,3.81975044,122.49,122.42,3.5878259]
[1769407186228,3.81975044,122.49,122.39,3.5878259]
[1769407186229,2.71834816,122.44,122.39,3.5878259]
[1769407186522,3.81974891,122.46,122.39,3.5878259]
[1769407186918,3.81974891,122.46,122.4,3.5878259]
[1769407194324,2.71834816,122.45,122.4,3.5878259]
[1769407196628,2.71834816,122.47,122.41,3.5878259]
[1769407196830,1.10139363,122.48,122.41,3.5878259]
[1769407196831,3.81974179,122.48,122.41,3.5878259]
[1769407197432,1.10139296,122.47,122.41,3.5878259]
[1769407200132,3.81974112,122.47,122.41,3.5878259]
[1769407200329,1.10139296,122.47,122.41,3.5878259]
[1769407200526,7.3578,122.49,122.42,3.5878259]
[1769407200527,11.17753916,122.49,122.42,3.5878259]
[1769407201634,11.17633853,122.51,122.44,3.5878259]
[1769407201929,3.81973853,122.51,122.44,3.5878259]
[1769407202328,1.10139037,122.51,122.45,3.5878259]
[1769407202536,2.71834816,122.52,122.46,3.5878259]
[1769407202722,11.1750379,122.53,122.46,3.5878259]
[1769407202923,1.10138974,122.53,122.47,3.5878259]
[1769407203228,11.1738379,122.55,122.48,3.5878259]
[1769407203429,2.71834816,122.54,122.48,3.5878259]
[1769407203724,3.81665319,122.54,122.48,3.5878259]
[1769407204134,3.81665258,122.53,122.48,3.5878259]
[1769407204435,2.71834816,122.51,122.46,3.46884501]
[1769407206132,11.17245258,122.52,122.46,3.46884501]
[1769407206330,11.17245258,122.52,122.44,10.07844816]
[1769407206331,3.81665139,122.5,122.44,3.46884501]
[1769407206526,3.81665139,122.49,122.44,3.46884501]
[1769407207735,2.71834816,122.48,122.44,3.46884501]
[1769407207934,1.09830323,122.49,122.44,3.46884501]
[1769407207935,2.71834816,122.47,122.44,3.46884501]
[1769407208740,2.71834816,122.48,122.44,3.46884501]
[1769407210540,3.81664907,122.48,122.42,3.46884501]
[1769407210737,2.71834816,122.47,122.42,3.46884501]
[1769407214647,3.81664687,122.47,122.42,3.46884501]
[1769407223657,2.71834816,122.44,122.4,3.48958794]
[1769407225551,2.7212972,122.43,122.4,3.48958794]
[1769407229964,2.7212972,122.43,122.38,3.48958794]
[1769407231364,2.7212972,122.41,122.38,3.48958794]
[1769407235861,2.7212972,122.42,122.38,3.48958794]
[1769407236865,1.10162286,122.41,122.36,3.3759644]
[1769407237067,3.82292006,122.41,122.36,3.3759644]
[1769407241274,1.10162286,122.41,122.36,3.3759644]
[1769407242773,3.82292006,122.41,122.36,3.3759644]
[1769407243369,2.7212972,122.41,122.36,3.3759644]
[1769407245073,2.7212972,122.42,122.36,3.3759644]
[1769407248874,2.7212972,122.42,122.35,52.61320401]
[1769407248875,2.7212972,122.45,122.39,3.3759644]
[1769407249078,2.7212972,122.44,122.39,3.3759644]
[1769407249978,1.10161828,122.45,122.39,3.3759644]
[1769407250276,3.82291548,122.45,122.39,3.3759644]
[1769407250476,1.10161828,122.45,122.39,3.3759644]
[1769407252578,1.10161828,122.45,122.4,3.3759644]
[1769407255481,3.82291548,122.45,122.4,3.3759644]
[1769407262581,1.10161828,122.45,122.4,3.3759644]
[1769407263884,10.0806972,122.46,122.4,3.3759644]
[1769407264085,7.3594,122.46,122.4,3.3759644]
[1769407265693,11.18454303,122.46,122.4,3.3759644]
[1769407265881,3.82514303,122.45,122.4,3.3759644]
[1769407268781,1.10384583,122.45,122.4,3.3759644]
[1769407269184,10.0806972,122.46,122.4,3.3759644]
[1769407270283,11.18454163,122.46,122.4,3.3759644]
[1769407274285,3.82514056,122.48,122.41,2.7212972]
[1769407274491,1.10384336,122.48,122.42,3.3514045]
[1769407277885,1.10384336,122.48,122.42,6.0727017]
[1769407278092,1.10384336,122.48,122.43,3.50976756]
[1769407280697,3.82514056,122.48,122.43,3.50976756]
[1769407284101,1.10384336,122.48,122.43,3.50976756]
[1769407285099,10.0788972,122.49,122.43,3.50976756]
[1769407285600,11.17987271,122.49,122.43,3.50976756]
[1769407287608,11.17729099,122.49,122.43,3.50976756]
[1769407289210,1.10097462,122.48,122.43,3.50976756]
[1769407289402,3.8196901,122.47,122.41,3.50976756]
[1769407293107,11.1783901,122.47,122.41,3.50976756]
[1769407294003,1.10368002,122.46,122.41,3.50976756]
[1769407295010,1.10367981,122.46,122.38,3.46668003]
[1769407295208,114.4533,122.49,122.39,3.46668003]
[1769407295209,3.82239509,122.45,122.39,3.46668003]
[1769407297906,3.8223947,122.47,122.41,3.46668003]
[1769407298107,114.4533,122.49,122.41,3.46668003]
[1769407298108,2.71871548,122.45,122.41,3.46668003]
[1769407299508,3.82239431,122.45,122.39,3.46668003]
[1769407300105,11.18229431,122.45,122.39,3.46668003]
[1769407308115,2.71871548,122.44,122.39,3.46668003]
[1769407310122,11.18229431,122.45,122.39,3.46668003]
[1769407315832,2.71871548,122.44,122.39,3.46668003]
[1769407316334,2.71871548,122.43,122.39,3.46668003]
[1769407316542,2.71871548,122.42,122.37,10.83088003]
[1769407317736,2.71871548,122.42,122.38,3.46668003]
[1769407321033,3.82239137,122.43,122.38,3.46668003]
[1769407321734,2.71871548,122.44,122.38,3.46668003]
[1769407322640,3.82239046,122.44,122.38,3.46668003]
[1769407325637,1.1015985,122.42,122.35,376.01190681]
[1769407325840,3.82031398,122.41,122.36,3.33350066]
[1769407328044,2.71871548,122.39,122.35,42.52650681]
[1769407328244,2.71871548,122.38,122.35,24.98050681]
[1769407331247,2.71871548,122.37,122.34,3.33350066]
[1769407334849,2.71871548,122.38,122.34,3.33350066]
[1769407336152,3.36854882,122.39,122.34,3.33350066]
[1769407336352,2.71871548,122.38,122.34,3.33350066]
[1769407337150,2.71871548,122.37,122.34,3.33350066]
[1769407337448,3.40658045,122.34,122.27,3.4426512]
[1769407337750,2.71871548,122.33,122.27,3.4426512]
[1769407338350,2.71871548,122.33,122.28,3.4426512]
[1769407338946,2.71871548,122.32,122.28,3.4426512]
[1769407339652,2.71871548,122.33,122.28,3.4426512]
[1769407340646,2.71871548,122.34,122.28,3.4426512]
[1769407340855,3.40658045,122.38,122.3,3.4426512]
[1769407341049,2.71871548,122.37,122.3,3.4426512]
[1769407341753,2.71871548,122.36,122.3,3.4426512]
[1769407343353,3.40658045,122.38,122.29,10.08791548]
[1769407343354,2.71871548,122.34,122.29,10.8118512]
[1769407343843,6.12529593,122.35,122.29,10.8118512]
[1769407344050,3.40658045,122.35,122.3,3.4426512]
[1769407345455,2.71871548,122.36,122.3,3.4426512]
[1769407347647,2.72448543,122.36,122.3,3.4426512]
[1769407347851,2.72448543,122.36,122.31,3.4426512]
[1769407348052,3.40658045,122.37,122.32,3.4426512]
[1769407349654,2.72448543,122.38,122.32,3.4426512]
[1769407353757,6.22824965,122.38,122.32,3.4426512]
[1769407363763,3.50376422,122.38,122.32,3.4426512]
[1769407364763,6.22824965,122.38,122.32,3.4426512]
[1769407365464,3.50376422,122.38,122.32,3.4426512]
[1769407367668,3.50376422,122.37,122.31,10.09248543]
[1769407368062,3.50376422,122.37,122.31,13.36486701]
[1769407368265,3.50376422,122.37,122.32,3.27238158]
[1769407372165,3.50376422,122.37,122.3,5.99686701]
[1769407372363,3.50376422,122.36,122.3,5.99686701]
[1769407378576,3.50376422,122.36,122.3,3.27238158]
[1769407379171,3.50376422,122.35,122.3,3.27238158]
[1769407380373,3.50376422,122.35,122.28,5.99686701]
[1769407380374,3.50376422,122.34,122.28,5.99686701]
[1769407380576,6.22824965,122.34,122.28,3.27238158]
[1769407380970,3.50376422,122.33,122.28,3.27238158]
[1769407381569,3.50376422,122.33,122.28,5.99686701]
[1769407384768,3.50376422,122.33,122.28,3.27238158]
[1769407385874,3.44045906,122.32,122.26,3.30021976]
[1769407386074,3.44045906,122.31,122.24,3.30021976]
[1769407386270,3.44045906,122.31,122.25,3.30021976]
[1769407386481,3.44045906,122.3,122.23,13.39740519]
[1769407386680,6.16494449,122.3,122.23,13.39740519]
[1769407386882,6.16494449,122.3,122.24,3.30021976]
[1769407387085,3.44045906,122.28,122.22,329.64021976]
[1769407387581,3.44045906,122.25,122.17,3.30021976]
[1769407387780,2.72448543,122.28,122.2,6.10419927]
[1769407387975,2.72448543,122.28,122.21,2.72448543]
[1769407388179,2.72448543,122.29,122.21,6.10419927]
[1769407388881,10.09428543,122.29,122.21,6.10419927]
[1769407389884,3.14398462,122.28,122.21,6.10419927]
[1769407391681,3.14398462,122.28,122.21,3.37971384]
[1769407392081,3.14398449,122.26,122.19,10.75491384]
[1769407392278,3.14398449,122.26,122.2,3.37971384]
[1769407392479,3.14398449,122.26,122.2,6.10419927]
[1769407392781,2.72448543,122.27,122.21,3.37971384]
[1769407393287,2.72448543,122.27,122.21,6.10419927]
[1769407393680,3.14398443,122.28,122.21,6.10419927]
[1769407394588,3.14398443,122.28,122.22,3.37971384]
[1769407394982,0.419499,122.28,122.22,3.37971384]
[1769407395893,3.14398443,122.28,122.22,3.37971384]
[1769407397889,2.72448543,122.28,122.22,3.37971384]
[1769407398094,2.72448543,122.29,122.23,3.50102401]
[1769407398294,3.14368287,122.3,122.23,3.50102401]
[1769407398493,2.72448543,122.29,122.23,3.50102401]
[1769407399096,3.14368281,122.29,122.23,3.50102401]
[1769407399696,0.41919738,122.29,122.23,3.50102401]
[1769407399897,3.14368281,122.29,122.23,3.50102401]
[1769407400197,2.72448543,122.28,122.23,3.50102401]
[1769407401093,3.14368269,122.28,122.23,3.50102401]
[1769407401492,2.72448543,122.27,122.23,3.50102401]
[1769407402498,3.14368269,122.28,122.23,3.50102401]
[1769407404795,2.72448543,122.27,122.23,3.50102401]
[1769407407598,2.72833245,122.27,122.23,3.50102401]
[1769407409802,3.14752971,122.28,122.23,3.50102401]
[1769407409991,10.51722924,122.29,122.23,3.50102401]
[1769407411901,2.72833245,122.28,122.23,3.50102401]
[1769407415608,3.1494361,122.28,122.23,3.50102401]
[1769407415808,2.72833245,122.26,122.21,3.46062276]
[1769407419708,3.14943592,122.26,122.21,3.46062276]
[1769407420205,0.42110342,122.25,122.19,13.56395521]
[1769407420507,0.42110342,122.25,122.2,3.46062276]
[1769407420703,2.72833245,122.26,122.2,3.46062276]
[1769407421306,3.14943587,122.27,122.21,3.46062276]
[1769407422709,0.42110342,122.27,122.21,3.46062276]
[1769407423904,0.42110342,122.27,122.21,6.18895521]
[1769407424105,2.72833245,122.29,122.23,3.46062276]
[1769407426009,10.09793245,122.29,122.23,3.46062276]
[1769407427015,2.72833245,122.29,122.23,3.46062276]
[1769407427312,3.1494357,122.3,122.23,3.46062276]
[1769407427512,3.1494357,122.3,122.24,3.46062276]
[1769407430721,2.72833245,122.3,122.24,3.46062276]
[1769407430919,7.3687,122.31,122.25,3.46062276]
[1769407430920,10.51813546,122.31,122.25,3.46062276]
[1769407432118,3.14943542,122.3,122.25,3.46062276]
[1769407433519,0.42110289,122.29,122.23,13.56175521]
[1769407433717,0.42110289,122.29,122.23,10.83342276]
[1769407433920,0.42110289,122.29,122.24,3.46062276]
[1769407437626,3.14943519,122.28,122.22,3.46062276]
[1769407437816,2.72833245,122.26,122.22,3.46062276]
[1769407438022,3.14943519,122.26,122.19,3.46062276]
[1769407439027,3.14943519,122.26,122.2,3.46062276]
[1769407439223,0.42110274,122.26,122.2,3.46062276]
[1769407439424,0.42110274,122.26,122.2,6.18895521]
[1769407440224,0.42110274,122.26,122.2,3.46062276]
[1769407441627,3.14943519,122.26,122.2,3.46062276]
[1769407445330,3.15007164,122.26,122.2,3.46062276]
[1769407446032,2.7289689,122.25,122.2,3.46062276]
[1769407446922,2.7289689,122.24,122.2,3.46062276]
[1769407447826,2.7289689,122.24,122.18,3.49371652]
[1769407448030,3.15275095,122.2,122.14,3.49371652]
[1769407448230,2.7289689,122.19,122.14,3.49371652]
[1769407449630,3.15275095,122.2,122.14,3.49371652]
[1769407450938,2.7289689,122.19,122.14,3.49371652]
[1769407452240,2.7289689,122.21,122.15,3.49371652]
[1769407452740,2.7289689,122.2,122.15,3.49371652]
[1769407453644,0.4237819,122.21,122.15,3.49371652]
[1769407453645,2.7289689,122.19,122.15,3.49371652]
[1769407454937,2.7289689,122.19,122.13,3.49371652]
[1769407458447,2.7289689,122.18,122.13,3.49371652]
[1769407459242,2.7289689,122.19,122.13,3.49371652]
[1769407461553,0.42643394,122.18,122.13,3.49371652]
[1769407461853,2.7289689,122.19,122.13,3.49371652]
[1769407462551,3.15540281,122.19,122.13,3.49371652]
[1769407464154,2.7289689,122.18,122.13,3.49371652]
[1769407465155,3.15540281,122.19,122.13,3.49371652]
[1769407469560,3.15871951,122.19,122.13,3.49371652]
[1769407470655,2.7322856,122.18,122.13,3.49371652]
[1769407472662,3.15871951,122.19,122.14,3.37971384]
[1769407473251,2.7322856,122.2,122.15,3.56117868]
[1769407473653,3.15849918,122.21,122.15,3.56117868]
[1769407474159,0.42621358,122.21,122.15,3.56117868]
[1769407474853,3.15849918,122.21,122.15,3.56117868]
[1769407475060,3.15849918,122.21,122.16,3.56117868]
[1769407476160,3.15849912,122.2,122.14,3.56117868]
[1769407476362,2.7322856,122.19,122.14,3.56117868]
[1769407478359,3.15849912,122.2,122.14,3.56117868]
[1769407481764,3.15849901,122.19,122.14,3.56117868]
[1769407484265,2.7322856,122.18,122.14,3.56117868]
[1769407484464,3.15849895,122.18,122.12,3.56117868]
[1769407485665,2.7322856,122.19,122.13,3.56117868]
[1769407494581,0.42621333,122.2,122.14,3.56117868]
[1769407494880,2.7322856,122.19,122.14,3.56117868]
[1769407496076,3.15849893,122.2,122.14,3.56117868]
[1769407496280,0.42621312,122.22,122.15,3.56117868]
[1769407496481,3.15849872,122.22,122.15,3.56117868]
[1769407496882,2.7322856,122.19,122.15,3.56117868]
[1769407497282,3.15849872,122.2,122.15,3.56117868]
[1769407500284,0.42621312,122.2,122.15,3.56117868]
[1769407500480,3.15849865,122.22,122.16,3.56117868]
[1769407500677,2.7322856,122.22,122.16,3.56117868]
[1769407501079,3.15849865,122.22,122.16,3.56117868]
[1769407501885,3.15849865,122.22,122.16,10.93827868]
[1769407502886,7.3728,122.24,122.14,117.5063856]
[1769407502887,2.7322856,122.19,122.14,10.93917868]
[1769407503083,2.7322856,122.19,122.14,3.56117868]
[1769407503880,3.16009381,122.21,122.15,3.37971384]
[1769407511291,0.42780808,122.24,122.16,3.37971384]
[1769407511590,3.16009368,122.24,122.16,3.37971384]
[1769407512894,3.16009368,122.24,122.17,3.37971384]
[1769407514595,0.42780808,122.24,122.18,3.37971384]
[1769407514792,3.16009368,122.24,122.18,3.37971384]
[1769407515796,0.42780803,122.23,122.17,7.3762]
[1769407515995,2.7322856,122.22,122.17,7.3762]
[1769407516189,2.7322856,122.22,122.17,10.75591384]
[1769407517501,2.7322856,122.2,122.15,10.75731384]
[1769407517804,3.15948714,122.2,122.15,10.75731384]
[1769407520907,0.42720154,122.2,122.15,10.75731384]
[1769407521702,2.7322856,122.21,122.15,10.75731384]
[1769407521911,2.7322856,122.21,122.16,3.37971384]
[1769407522805,3.15948707,122.21,122.16,3.37971384]
[1769407524013,2.7322856,122.21,122.16,3.37971384]
[1769407524513,3.15948706,122.22,122.16,3.37971384]
[1769407525215,0.42720143,122.21,122.16,3.37971384]
[1769407525415,3.15948703,122.21,122.16,3.37971384]
[1769407526511,0.42720143,122.21,122.16,3.37971384]
[1769407528913,0.4272014,122.23,122.17,3.37971384]
[1769407530620,3.15738682,122.23,122.17,3.37971384]
[1769407532418,0.05337686,122.21,122.17,3.37971384]
[1769407540324,0.42521255,122.25,122.18,3.55984264]
[1769407540522,3.15539797,122.25,122.18,3.62220203]
[1769407541023,3.15539797,122.25,122.19,3.55984264]
[1769407542020,3.15539797,122.25,122.21,0.06176547]